fUST/lending_fUST_20250930
["ID","MTS","AMOUNT","RATE_DAILY","PERIOD"]
[388467484,1759180259618,-1345.78,0.00023405,2]
[388467485,1759180259630,-480.0,0.00023405,2]
[388467486,1759180259644,-1010.66,0.00023405,2]
[388467487,1759180259657,-480.0,0.00023405,2]
[388467488,1759180259671,-480.0,0.00023405,2]
[388467489,1759180259685,-480.0,0.00023405,2]
[388467490,1759180259699,-480.0,0.00023405,2]
[388467491,1759180259714,-660.3,0.00023405,2]
[388467492,1759180259728,-480.0,0.00023405,2]
[388467493,1759180259740,-1371.82,0.00023405,2]
[388467494,1759180259753,-480.0,0.00023405,2]
[388467495,1759180259766,-480.0,0.00023405,2]
[388467496,1759180259778,-7101.53,0.00023405,2]
[388467497,1759180259793,-2395.86,0.00023405,2]
[388467498,1759180259805,-1541.11,0.00023405,2]
[388467499,1759180259816,-588.15,0.00023405,2]
[388467500,1759180259826,-480.0,0.00023405,2]
[388467501,1759180259839,-2058.14,0.00023405,2]
[388467502,1759180259852,-1747.67,0.00023405,2]
[388467503,1759180259865,-161.24248463,0.00023406,2]
[388467504,1759180259879,-480.0,0.00023407,2]
[388467505,1759180259892,-480.0,0.00023407,2]
[388467506,1759180259905,-480.0,0.00023407,2]
[388467507,1759180259920,-480.0,0.00023407,2]
[388467508,1759180259932,-480.0,0.00023407,2]
[388467509,1759180259942,-480.0,0.00023407,2]
[388467510,1759180259952,-591.6,0.00023407,2]
[388467511,1759180259964,-480.0,0.00023407,2]
[388467512,1759180259979,-480.0,0.00023407,2]
[388467513,1759180259992,-480.0,0.00023407,2]
[388467514,1759180260002,-480.0,0.00023407,2]
[388467515,1759180260013,-480.0,0.00023407,2]
[388467516,1759180260026,-480.0,0.00023407,2]
[388467517,1759180260038,-899.34,0.00023407,2]
[388467518,1759180260049,-480.0,0.00023407,2]
[388467519,1759180260059,-480.0,0.00023407,2]
[388467520,1759180260071,-480.0,0.00023407,2]
[388467521,1759180260082,-480.0,0.00023407,2]
[388467522,1759180260093,-480.0,0.00023407,2]
[388467523,1759180260105,-480.0,0.00023407,2]
[388467524,1759180260116,-480.0,0.00023407,2]
[388467525,1759180260128,-480.0,0.00023407,2]
[388467526,1759180260139,-480.0,0.00023407,2]
[388467527,1759180260151,-480.0,0.00023407,2]
[388467528,1759180260162,-670.92,0.00023407,2]
[388467529,1759180260173,-480.0,0.00023407,2]
[388467530,1759180260185,-664.1,0.00023407,2]
[388467531,1759180260196,-979.68,0.00023407,2]
[388467532,1759180260209,-480.0,0.00023407,2]
[388467533,1759180260222,-679.03,0.00023407,2]
[388467534,1759180260236,-173.40253469,0.00023407,2]
[388467535,1759180260247,-480.0,0.00023407,2]
[388467536,1759180260260,-480.0,0.00023407,2]
[388467537,1759180260271,-480.0,0.00023407,2]
[388467538,1759180260282,-480.0,0.00023407,2]
[388467539,1759180260293,-480.0,0.00023407,2]
[388467540,1759180260304,-480.0,0.00023407,2]
[388467541,1759180260316,-480.0,0.00023407,2]
[388467542,1759180260327,-480.0,0.00023407,2]
[388467543,1759180260339,-480.0,0.00023407,2]
[388467544,1759180260351,-539.37773599,0.00023407,2]
[388467545,1759180260367,-633.7,0.00023407,2]
[388467546,1759180260379,-632.39,0.00023407,2]
[388467547,1759180260390,-545.34,0.00023407,2]
[388467548,1759180260401,-480.0,0.00023407,2]
[388467549,1759180260412,-480.0,0.00023407,2]
[388467550,1759180260423,-545.58,0.00023407,2]
[388467551,1759180260435,-480.0,0.00023407,2]
[388467552,1759180260446,-480.0,0.00023407,2]
[388467553,1759180260458,-151.0,0.00023407,7]
[388467554,1759180260469,-151.0,0.00023407,7]
[388467555,1759180260480,-151.0,0.00023407,7]
[388467556,1759180260493,-543.94,0.00023407,2]
[388467557,1759180260504,-735.98,0.00023407,2]
[388467558,1759180260515,-480.0,0.00023407,2]
[388467559,1759180260526,-480.0,0.00023407,2]
[388467560,1759180260537,-480.0,0.00023407,2]
[388467561,1759180260549,-509.99,0.00023407,2]
[388467562,1759180260560,-553.31,0.00023407,2]
[388467563,1759180260572,-739.25,0.00023407,2]
[388467564,1759180260584,-480.0,0.00023407,2]
[388467565,1759180260595,-480.0,0.00023407,2]
[388467566,1759180260606,-1684.91,0.00023407,2]
[388467567,1759180260618,-480.0,0.00023407,2]
[388467568,1759180260629,-480.0,0.00023407,2]
[388467569,1759180260640,-480.0,0.00023407,2]
[388467570,1759180260651,-1232.01,0.00023407,2]
[388467571,1759180260663,-784.13,0.00023407,2]
[388467572,1759180260674,-480.0,0.00023407,2]
[388467573,1759180260685,-498.83,0.00023407,2]
[388467574,1759180260696,-857.29,0.00023407,2]
[388467575,1759180260708,-480.0,0.00023407,2]
[388467576,1759180260719,-1010.1,0.00023407,2]
[388467577,1759180260731,-560.85,0.00023407,2]
[388467578,1759180260743,-881.56,0.00023407,2]
[388467579,1759180260755,-525.61,0.00023407,2]
[388467580,1759180260766,-1402.76,0.00023407,2]
[388467581,1759180260777,-480.0,0.00023407,2]
[388467582,1759180260786,-4210.83,0.00023407,2]
[388467583,1759180260795,-576.69,0.00023407,2]
[388467584,1759180260804,-595.24,0.00023407,2]
[388467585,1759180260814,-480.0,0.00023407,2]
[388467586,1759180260823,-1696.01,0.00023407,2]
[388467587,1759180260833,-480.0,0.00023407,2]
[388467588,1759180260842,-1238.02,0.00023407,2]
[388467589,1759180260851,-480.0,0.00023407,2]
[388467590,1759180260860,-480.0,0.00023407,2]
[388467591,1759180260870,-858.48,0.00023407,2]
[388467592,1759180260880,-831.11,0.00023407,2]
[388467593,1759180260890,-1547.16,0.00023407,2]
[388467594,1759180260899,-513.21867849,0.00023407,2]
[388467595,1759180260909,-673.71,0.00023407,2]
[388467596,1759180260918,-528.23,0.00023407,2]
[388467597,1759180260928,-480.0,0.00023407,2]
[388467598,1759180260937,-3346.74,0.00023407,2]
[388467599,1759180260947,-691.66,0.00023407,2]
[388467600,1759180260956,-599.28,0.00023407,2]
[388467601,1759180260966,-480.0,0.00023407,2]
[388467602,1759180260976,-1530.45,0.00023407,2]
[388467603,1759180260986,-480.0,0.00023407,2]
[388467604,1759180260995,-1441.05,0.00023407,2]
[388467605,1759180261004,-669.71,0.00023407,2]
[388467606,1759180261014,-480.0,0.00023407,2]
[388467607,1759180261024,-487.67,0.00023407,2]
[388467608,1759180261033,-492.29,0.00023407,2]
[388467609,1759180261043,-480.0,0.00023407,2]
[388467610,1759180261052,-3360.68,0.00023407,2]
[388467611,1759180261062,-480.0,0.00023407,2]
[388467612,1759180261071,-540.45,0.00023407,2]
[388467613,1759180261081,-941.14,0.00023407,2]
[388467614,1759180261091,-480.0,0.00023407,2]
[388467615,1759180261100,-923.95,0.00023407,2]
[388467616,1759180261110,-480.0,0.00023407,2]
[388467617,1759180261119,-480.0,0.00023407,2]
[388467618,1759180261128,-480.0,0.00023407,2]
[388467619,1759180261137,-490.58,0.00023407,2]
[388467620,1759180261146,-480.0,0.00023407,2]
[388467621,1759180261155,-1499.12,0.00023407,2]
[388467622,1759180261164,-480.0,0.00023407,2]
[388467623,1759180261174,-480.0,0.00023407,2]
[388467624,1759180261183,-480.0,0.00023408,2]
[388467625,1759180261192,-480.0,0.00023408,2]
[388467626,1759180261201,-480.0,0.00023408,2]
[388467627,1759180261211,-500.0,0.00023409,2]
[388467628,1759180261220,-480.0,0.00023409,2]
[388467629,1759180261230,-480.0,0.00023409,2]
[388467630,1759180261240,-501.66,0.00023409,2]
[388467631,1759180261249,-480.0,0.00023409,2]
[388467632,1759180261259,-602.69,0.00023409,2]
[388467633,1759180261558,-766.71,0.00023409,2]
[388467634,1759180261574,-480.0,0.00023409,2]
[388467635,1759180261587,-1192.11,0.00023409,2]
[388467636,1759180261596,-480.0,0.00023409,2]
[388467637,1759180261607,-1627.09,0.00023409,2]
[388467638,1759180261619,-480.0,0.00023409,2]
[388467639,1759180261628,-498.01,0.00023409,2]
[388467640,1759180261638,-1025.99,0.00023409,2]
[388467641,1759180261648,-946.39,0.00023409,2]
[388467642,1759180261658,-1604.77,0.00023409,2]
[388467643,1759180261667,-480.0,0.00023409,2]
[388467644,1759180261677,-480.0,0.00023409,2]
[388467645,1759180261686,-151.0,0.000235,8]
[388467646,1759180261696,-169.6,0.00023509,2]
[388467647,1759180261705,-480.0,0.00023509,2]
[388467648,1759180261715,-480.0,0.00023509,2]
[388467649,1759180261724,-530.3,0.00023509,2]
[388467650,1759180261733,-483.85,0.00023509,2]
[388467651,1759180261743,-480.0,0.00023509,2]
[388467652,1759180261753,-480.0,0.00023509,2]
[388467653,1759180261762,-480.0,0.00023509,2]
[388467654,1759180261772,-480.0,0.00023509,2]
[388467655,1759180261781,-509.19,0.00023509,2]
[388467656,1759180261791,-480.0,0.00023509,2]
[388467657,1759180261800,-959.25,0.00023509,2]
[388467658,1759180261810,-480.0,0.00023509,2]
[388467659,1759180261819,-480.0,0.00023509,2]
[388467660,1759180261829,-517.13,0.00023509,2]
[388467661,1759180261838,-1872.04,0.00023509,2]
[388467662,1759180261848,-480.0,0.00023509,2]
[388467663,1759180261857,-480.0,0.00023509,2]
[388467664,1759180261866,-561.01,0.00023509,2]
[388467665,1759180261876,-540.93,0.00023509,2]
[388467666,1759180261885,-1396.18,0.00023509,2]
[388467667,1759180261894,-480.0,0.00023509,2]
[388467668,1759180261903,-480.0,0.00023509,2]
[388467669,1759180261913,-1145.88618923,0.00023509,2]
[388467670,1759180261923,-160.0,0.0002351,3]
[388467671,1759180261932,-200.0,0.00023516,2]
[388467672,1759180261942,-200.0,0.00023516,2]
[388467673,1759180261951,-151.0,0.00023516,7]
[388467674,1759180261960,-151.0,0.00023516,7]
[388467675,1759180261969,-232.207905,0.00023516,7]
[388467676,1759180261979,-176.329269,0.00023516,7]
[388467677,1759180261988,-151.0,0.00023516,7]
[388467678,1759180261998,-480.0,0.00023517,2]
[388467679,1759180262007,-480.0,0.00023517,2]
[388467680,1759180262016,-480.0,0.00023517,2]
[388467681,1759180262026,-480.0,0.00023517,2]
[388467682,1759180262035,-480.0,0.00023517,2]
[388467683,1759180262045,-153.14604712,0.00023517,2]
[388467684,1759180262054,-480.0,0.00023517,2]
[388467685,1759180262063,-480.0,0.00023517,2]
[388467686,1759180262072,-995.88,0.00023517,2]
[388467687,1759180262082,-480.0,0.00023517,2]
[388467688,1759180262091,-480.0,0.00023517,2]
[388467689,1759180262101,-480.0,0.00023517,2]
[388467690,1759180262110,-480.0,0.00023517,2]
[388467691,1759180262120,-480.0,0.00023517,2]
[388467692,1759180262129,-825.57,0.00023517,2]
[388467693,1759180262138,-480.0,0.00023517,2]
[388467694,1759180262147,-480.0,0.00023517,2]
[388467695,1759180262156,-480.0,0.00023517,2]
[388467696,1759180262165,-480.0,0.00023517,2]
[388467697,1759180262174,-480.0,0.00023517,2]
[388467698,1759180262184,-480.0,0.00023517,2]
[388467699,1759180262193,-689.95,0.00023517,2]
[388467700,1759180262203,-480.0,0.00023517,2]
[388467701,1759180262212,-480.0,0.00023517,2]
[388467702,1759180262222,-480.0,0.00023517,2]
[388467703,1759180262231,-480.0,0.00023517,2]
[388467704,1759180262240,-480.0,0.00023517,2]
[388467705,1759180262250,-480.0,0.00023517,2]
[388467706,1759180262260,-480.0,0.00023517,2]
[388467707,1759180262270,-480.0,0.00023517,2]
[388467708,1759180262280,-480.0,0.00023517,2]
[388467709,1759180262289,-152.23786,0.00023517,7]
[388467710,1759180262298,-480.0,0.00023517,2]
[388467711,1759180262307,-152.265535,0.00023517,7]
[388467712,1759180262316,-480.0,0.00023517,2]
[388467713,1759180262325,-560.10055377,0.00023517,2]
[388467714,1759180262335,-151.0,0.00023517,7]
[388467715,1759180262344,-152.156511,0.00023517,7]
[388467716,1759180262360,-152.156511,0.00023517,7]
[388467717,1759180262380,-152.156511,0.00023517,7]
[388467718,1759180262400,-151.0,0.00023517,7]
[388467719,1759180262421,-152.156511,0.00023517,7]
[388467720,1759180262442,-151.0,0.00023517,7]
[388467721,1759180262463,-151.0,0.00023517,7]
[388467722,1759180262484,-151.0,0.00023517,7]
[388467723,1759180262505,-199.442798,0.00023517,7]
[388467724,1759180262525,-199.442798,0.00023517,7]
[388467725,1759180262545,-199.442798,0.00023517,7]
[388467726,1759180262566,-151.0,0.00023517,7]
[388467727,1759180262588,-199.442798,0.00023517,7]
[388467728,1759180262607,-151.0,0.00023517,7]
[388467729,1759180262629,-375.346038,0.00023517,7]
[388467730,1759180262649,-375.346038,0.00023517,7]
[388467731,1759180262670,-375.346038,0.00023517,7]
[388467732,1759180262690,-375.346038,0.00023517,7]
[388467733,1759180262711,-151.0,0.00023517,7]
[388467734,1759180262732,-151.0,0.00023517,7]
[388467735,1759180262752,-151.0,0.00023517,7]
[388467736,1759180262764,-151.0,0.00023517,7]
[388467737,1759180262773,-255.83817,0.00023517,7]
[388467738,1759180262782,-255.83817,0.00023517,7]
[388467739,1759180262791,-255.83817,0.00023517,7]
[388467740,1759180262800,-255.83817,0.00023517,7]
[388467741,1759180262810,-151.0,0.00023517,7]
[388467742,1759180262820,-151.0,0.00023517,7]
[388467743,1759180262829,-151.0,0.00023517,7]
[388467744,1759180262839,-151.0,0.00023517,7]
[388467745,1759180262848,-151.0,0.00023517,7]
[388467746,1759180262859,-286.679828,0.00023517,7]
[388467747,1759180262868,-286.679828,0.00023517,7]
[388467748,1759180262878,-286.679828,0.00023517,7]
[388467749,1759180262888,-286.679828,0.00023517,7]
[388467750,1759180262897,-153.851363,0.00023517,7]
[388467751,1759180262907,-199.780283,0.00023517,7]
[388467752,1759180262917,-199.780283,0.00023517,7]
[388467753,1759180262927,-199.780283,0.00023517,7]
[388467754,1759180262936,-151.0,0.00023517,7]
[388467755,1759180262945,-151.0,0.00023517,7]
[388467756,1759180262955,-151.0,0.00023517,7]
[388467757,1759180262964,-151.0,0.00023517,7]
[388467758,1759180262973,-648.407709,0.00023517,7]
[388467759,1759180262983,-648.407709,0.00023517,7]
[388467760,1759180262993,-648.407709,0.00023517,7]
[388467761,1759180263002,-151.0,0.00023517,7]
[388467762,1759180263011,-648.407709,0.00023517,7]
[388467763,1759180263021,-295.488946,0.00023517,7]
[388467764,1759180263031,-295.488946,0.00023517,7]
[388467765,1759180263041,-151.0,0.00023517,7]
[388467766,1759180263049,-295.488946,0.00023517,7]
[388467767,1759180263059,-295.488946,0.00023517,7]
[388467768,1759180263068,-1000.0,0.00023521,2]
[388467769,1759180263078,-1000.0,0.00023521,2]
[388467770,1759180263087,-1072.98588114,0.00023606,2]
[388467771,1759180263097,-151.0,0.00023619,7]
[388467772,1759180263106,-151.0,0.00023619,7]
[388467773,1759180263116,-198.2541,0.00023619,7]
[388467774,1759180263126,-151.0,0.00023619,7]
[388467775,1759180263137,-151.0,0.00023619,7]
[388467776,1759180263146,-151.0,0.00023619,7]
[388467777,1759180263155,-152.79694186,0.00023619,7]
[388467778,1759180263165,-151.0,0.00023619,7]
[388467779,1759180263174,-500.0,0.0002362,2]
[388467780,1759180263184,-151.0,0.0002362,2]
[388467781,1759180263195,-267.9049289,0.0002362,2]
[388467782,1759180263205,-1564.0,0.0002362,2]
[388467783,1759180263214,-235.60784642,0.0002362,2]
[388467784,1759180263223,-500.0,0.0002362,2]
[388467785,1759180263233,-500.0,0.0002362,2]
[388467786,1759180263243,-168.0,0.0002367,2]
[388467787,1759180263252,-480.0,0.00023677,2]
[388467788,1759180263262,-2644.79,0.00023677,2]
[388467789,1759180263272,-876.0,0.00023677,2]
[388467790,1759180263281,-722.27,0.00023677,2]
[388467791,1759180263291,-480.0,0.00023679,2]
[388467792,1759180263300,-1345.78,0.00023679,2]
[388467793,1759180263310,-480.0,0.00023679,2]
[388467794,1759180263319,-1010.66,0.00023679,2]
[388467795,1759180263327,-480.0,0.00023679,2]
[388467796,1759180263336,-480.0,0.00023679,2]
[388467797,1759180263346,-450.90680251,0.00023679,2]
[388467798,1759180263356,-480.0,0.00023679,2]
[388467799,1759180263367,-660.3,0.00023679,2]
[388467800,1759180263376,-480.0,0.00023679,2]
[388467801,1759180263386,-1371.82,0.00023679,2]
[388467802,1759180263395,-480.0,0.00023679,2]
[388467803,1759180263405,-480.0,0.00023679,2]
[388467804,1759180263415,-7101.53,0.00023679,2]
[388467805,1759180263424,-2395.86,0.00023679,2]
[388467806,1759180263436,-1541.11,0.00023679,2]
[388467807,1759180263445,-588.15,0.00023679,2]
[388467808,1759180263455,-480.0,0.00023679,2]
[388467809,1759180263465,-2058.14,0.00023679,2]
[388467810,1759180263474,-1747.67,0.00023679,2]
[388467811,1759180263483,-203.04646152,0.0002368,2]
[388467812,1759180263493,-480.0,0.00023681,2]
[388467813,1759180263503,-480.0,0.00023681,2]
[388467814,1759180263513,-480.0,0.00023681,2]
[388467815,1759180263522,-514.6167709,0.00023681,2]
[388467816,1759180263532,-480.0,0.00023681,2]
[388467817,1759180263542,-480.0,0.00023681,2]
[388467818,1759180263552,-591.6,0.00023681,2]
[388467819,1759180263561,-480.0,0.00023681,2]
[388467820,1759180263571,-480.0,0.00023681,2]
[388467821,1759180263580,-537.83114695,0.00023681,2]
[388467822,1759180263589,-510.47411157,0.00023681,2]
[388467823,1759180263598,-480.0,0.00023681,2]
[388467824,1759180263607,-480.0,0.00023681,2]
[388467825,1759180263616,-899.34,0.00023681,2]
[388467826,1759180263625,-480.0,0.00023681,2]
[388467827,1759180263634,-480.0,0.00023681,2]
[388467828,1759180263644,-480.0,0.00023681,2]
[388467829,1759180263653,-480.0,0.00023681,2]
[388467830,1759180263662,-480.0,0.00023681,2]
[388467831,1759180263671,-480.0,0.00023681,2]
[388467832,1759180263680,-480.0,0.00023681,2]
[388467833,1759180263689,-480.0,0.00023681,2]
[388467834,1759180263698,-480.0,0.00023681,2]
[388467835,1759180263707,-480.0,0.00023681,2]
[388467836,1759180263717,-670.92,0.00023681,2]
[388467837,1759180263726,-480.0,0.00023681,2]
[388467838,1759180263736,-664.1,0.00023681,2]
[388467839,1759180263747,-979.68,0.00023681,2]
[388467840,1759180263756,-480.0,0.00023681,2]
[388467841,1759180263765,-679.03,0.00023681,2]
[388467842,1759180263775,-480.0,0.00023681,2]
[388467843,1759180263784,-480.0,0.00023681,2]
[388467844,1759180263793,-480.0,0.00023681,2]
[388467845,1759180263804,-480.0,0.00023681,2]
[388467846,1759180263813,-480.0,0.00023681,2]
[388467847,1759180263823,-480.0,0.00023681,2]
[388467848,1759180263832,-480.0,0.00023681,2]
[388467849,1759180263841,-480.0,0.00023681,2]
[388467850,1759180263850,-480.0,0.00023681,2]
[388467851,1759180263859,-633.7,0.00023681,2]
[388467852,1759180263868,-632.39,0.00023681,2]
[388467853,1759180263878,-545.34,0.00023681,2]
[388467854,1759180263887,-480.0,0.00023681,2]
[388467855,1759180263896,-480.0,0.00023681,2]
[388467856,1759180263905,-545.58,0.00023681,2]
[388467857,1759180263914,-480.0,0.00023681,2]
[388467858,1759180263924,-151.0,0.00023681,7]
[388467859,1759180263933,-440.52433583,0.00023681,2]
[388467860,1759180263942,-151.0,0.00023681,7]
[388467861,1759180263951,-151.0,0.00023681,7]
[388467862,1759180263962,-543.94,0.00023681,2]
[388467863,1759180263971,-735.98,0.00023681,2]
[388467864,1759180263980,-480.0,0.00023681,2]
[388467865,1759180263989,-480.0,0.00023681,2]
[388467866,1759180263999,-480.0,0.00023681,2]
[388467867,1759180264009,-509.99,0.00023681,2]
[388467868,1759180264018,-553.31,0.00023681,2]
[388467869,1759180264027,-739.25,0.00023681,2]
[388467870,1759180264037,-480.0,0.00023681,2]
[388467871,1759180264046,-1684.91,0.00023681,2]
[388467872,1759180264054,-480.0,0.00023681,2]
[388467873,1759180264064,-480.0,0.00023681,2]
[388467874,1759180264072,-480.0,0.00023681,2]
[388467875,1759180264082,-359.47937334,0.00023681,2]
[388467876,1759180264091,-1232.01,0.00023681,2]
[388467877,1759180264101,-784.13,0.00023681,2]
[388467878,1759180264111,-480.0,0.00023681,2]
[388467879,1759180264119,-498.83,0.00023681,2]
[388467880,1759180264128,-857.29,0.00023681,2]
[388467881,1759180264137,-480.0,0.00023681,2]
[388467882,1759180264146,-1010.1,0.00023681,2]
[388467883,1759180264156,-560.85,0.00023681,2]
[388467884,1759180264165,-881.56,0.00023681,2]
[388467885,1759180264174,-525.61,0.00023681,2]
[388467886,1759180264183,-1402.76,0.00023681,2]
[388467887,1759180264192,-480.0,0.00023681,2]
[388467888,1759180264201,-4210.83,0.00023681,2]
[388467889,1759180264210,-576.69,0.00023681,2]
[388467890,1759180264219,-595.24,0.00023681,2]
[388467891,1759180264229,-480.0,0.00023681,2]
[388467892,1759180264238,-1696.01,0.00023681,2]
[388467893,1759180264248,-480.0,0.00023681,2]
[388467894,1759180264258,-1238.02,0.00023681,2]
[388467895,1759180264267,-480.0,0.00023681,2]
[388467896,1759180264276,-480.0,0.00023681,2]
[388467897,1759180264286,-858.48,0.00023681,2]
[388467898,1759180264295,-831.11,0.00023681,2]
[388467899,1759180264304,-1547.16,0.00023681,2]
[388467900,1759180264314,-673.71,0.00023681,2]
[388467901,1759180264323,-528.23,0.00023681,2]
[388467902,1759180264332,-480.0,0.00023681,2]
[388467903,1759180264341,-3346.74,0.00023681,2]
[388467904,1759180264350,-691.66,0.00023681,2]
[388467905,1759180264363,-599.28,0.00023681,2]
[388467906,1759180264372,-151.0,0.00023681,7]
[388467907,1759180264382,-151.0,0.00023681,7]
[388467908,1759180264391,-480.0,0.00023681,2]
[388467909,1759180264400,-151.0,0.00023681,7]
[388467910,1759180264410,-1530.45,0.00023681,2]
[388467911,1759180264419,-151.0,0.00023681,7]
[388467912,1759180264428,-480.0,0.00023681,2]
[388467913,1759180264437,-151.0,0.00023681,7]
[388467914,1759180264447,-1441.05,0.00023681,2]
[388467915,1759180264456,-669.71,0.00023681,2]
[388467916,1759180264467,-480.0,0.00023681,2]
[388467917,1759180264476,-487.67,0.00023681,2]
[388467918,1759180264485,-492.29,0.00023681,2]
[388467919,1759180264495,-480.0,0.00023681,2]
[388467920,1759180264504,-3360.68,0.00023681,2]
[388467921,1759180264514,-480.0,0.00023681,2]
[388467922,1759180264523,-540.45,0.00023681,2]
[388467923,1759180264533,-941.14,0.00023681,2]
[388467924,1759180264542,-1834.128022,0.00023681,7]
[388467925,1759180264552,-1834.128022,0.00023681,7]
[388467926,1759180264561,-1834.128022,0.00023681,7]
[388467927,1759180264571,-1834.12803107,0.00023681,7]
[388467928,1759180264581,-480.0,0.00023681,2]
[388467929,1759180264590,-923.95,0.00023681,2]
[388467930,1759180264600,-480.0,0.00023681,2]
[388467931,1759180264609,-480.0,0.00023681,2]
[388467932,1759180264619,-480.0,0.00023681,2]
[388467933,1759180264628,-490.58,0.00023681,2]
[388467934,1759180264638,-480.0,0.00023681,2]
[388467935,1759180264647,-1499.12,0.00023681,2]
[388467936,1759180264656,-480.0,0.00023681,2]
[388467937,1759180264666,-480.0,0.00023681,2]
[388467938,1759180264675,-480.0,0.00023682,2]
[388467939,1759180264684,-480.0,0.00023682,2]
[388467940,1759180264693,-151.0,0.00023682,7]
[388467941,1759180264702,-151.0,0.00023682,7]
[388467942,1759180264712,-500.0,0.00023683,2]
[388467943,1759180264721,-480.0,0.00023683,2]
[388467944,1759180264730,-151.0,0.00023683,7]
[388467945,1759180264739,-151.0,0.00023683,7]
[388467946,1759180264749,-151.0,0.00023683,7]
[388467947,1759180264758,-298.269547,0.00023683,7]
[388467948,1759180264767,-151.0,0.00023683,7]
[388467949,1759180264776,-151.0,0.00023683,7]
[388467950,1759180264786,-151.0,0.00023683,7]
[388467951,1759180264795,-480.0,0.00023683,2]
[388467952,1759180264805,-501.66,0.00023683,2]
[388467953,1759180264814,-480.0,0.00023683,2]
[388467954,1759180264823,-602.69,0.00023683,2]
[388467955,1759180264832,-766.71,0.00023683,2]
[388467956,1759180264841,-480.0,0.00023683,2]
[388467957,1759180264850,-1192.11,0.00023683,2]
[388467958,1759180264859,-480.0,0.00023683,2]
[388467959,1759180264870,-1627.09,0.00023683,2]
[388467960,1759180264880,-480.0,0.00023683,2]
[388467961,1759180264889,-498.01,0.00023683,2]
[388467962,1759180265046,-1025.99,0.00023683,2]
[388467963,1759180265056,-946.39,0.00023683,2]
[388467964,1759180265066,-1604.77,0.00023683,2]
[388467965,1759180265075,-480.0,0.00023683,2]
[388467966,1759180265084,-480.0,0.00023683,2]
[388467967,1759180265094,-3601.0,0.00023695,2]
[388467968,1759180265103,-168.0,0.00023728,2]
[388467969,1759180265112,-480.0,0.00023783,2]
[388467970,1759180265122,-480.0,0.00023783,2]
[388467971,1759180265131,-530.3,0.00023783,2]
[388467972,1759180265140,-483.85,0.00023783,2]
[388467973,1759180265149,-480.0,0.00023783,2]
[388467974,1759180265159,-480.0,0.00023783,2]
[388467975,1759180265168,-480.0,0.00023783,2]
[388467976,1759180265177,-480.0,0.00023783,2]
[388467977,1759180265186,-509.19,0.00023783,2]
[388467978,1759180265196,-480.0,0.00023783,2]
[388467979,1759180265206,-959.25,0.00023783,2]
[388467980,1759180265216,-480.0,0.00023783,2]
[388467981,1759180265225,-480.0,0.00023783,2]
[388467982,1759180265234,-517.13,0.00023783,2]
[388467983,1759180265245,-1872.04,0.00023783,2]